Cogmind - Beta 15 @@@ ROGUE MODE // 2025.05.11 @ 18:15:12 Player: Perseus Result: Destroyed by Piercing Trap Performance ------------- Evolutions (0) 0 Regions Visited (2) 400 Robots Destroyed (30) 150 Value Destroyed (704) 704 Prototype IDs (12) 240 Alien Tech Used (0) 0 Bonus (0) 0 TOTAL SCORE: 1494 Bonus ------- None Cogmind --------- Core Integrity 0/250 Matter 300/300 Energy 249/250 System Corruption 3% Temperature Cool (0) Movement Rolling (120) Ox1 Location -10/Subcaves Parts ------- > --- POWER (1) -------- Ion Engine > --- PROPULSION (2) --- Subdweller Monowheel Subdweller Monowheel > --- UTILITY (2) ------ Large Storage Unit V3-11A's Pendant > --- WEAPON (2) ------- Subdweller Beam Cannon Flamer > --- INVENTORY (15) --- Light Nuclear Core Spiked Treads Arachnoskeleton Improved Heat Sink Seismic Detector Riot Gun Barrage Gun Barrage Gun Makeshift Shrapnel Gun Battle Cannon Grenade Launcher Makeshift Sword Shrapnel Trap Peak State ------------ > --- POWER ------------ Ion Engine > --- PROPULSION ------- Subdweller Monowheel Subdweller Monowheel > --- UTILITY ---------- Large Storage Unit V3-11A's Pendant > --- WEAPON ----------- Subdweller Beam Cannon Makeshift Sword > --- INVENTORY -------- Light Nuclear Core Spiked Treads Arachnoskeleton Improved Heat Sink Seismic Detector Riot Gun Subdweller Laser Barrage Gun Barrage Gun Makeshift Shrapnel Gun Battle Cannon Battle Cannon Grenade Launcher [Rating: 20] Favorites ----------- Power Ion Engine Engine Ion Engine Propulsion Light Treads Treads Light Treads Leg Aluminum Leg Wheel Subdweller Monowheel Utility Large Storage Unit Device Seismic Detector Storage Large Storage Unit Weapon Assault Rifle Energy Gun Subdweller Laser Energy Cannon Subdweller Beam Cannon Ballistic Gun Assault Rifle Ballistic Cannon Light Cannon Special Weapon Flamer Slashing Weapon Makeshift Sword Build | -11 -10 -10 ------- Run | Yrd Mat Sub Slots Evolved . | . . . Power . | . . . Propulsion . | . . . Utility . | . . . Weapon . | . . . Parts Attached 38 | 10 6 22 Power 5 | 2 2 1 Engine 5 | 2 2 1 Core . | . . . Reactor . | . . . Propulsion 10 | 2 2 6 Treads 2 | 2 . . Leg 2 | . 2 . Wheel 6 | . . 6 Hover . | . . . Flight . | . . . Utility 9 | 3 1 5 Device 6 | 2 . 4 Storage 3 | 1 1 1 Processor . | . . . Hackware . | . . . Protection . | . . . Artifact . | . . . Weapon 14 | 3 1 10 Energy Gun 4 | 1 . 3 Energy Cannon 1 | . . 1 Ballistic Gun 4 | 2 . 2 Ballistic Cannon 3 | . 1 2 Launcher . | . . . Special Weapon 1 | . . 1 Impact Weapon . | . . . Slashing Weapon 1 | . . 1 Piercing Weapon . | . . . Special Melee Weapon . | . . . Unidentified Prototypes 1 | . . 1 Parts Lost 2 | . 1 1 Power 1 | . . 1 Propulsion . | . . . Utility . | . . . Weapon 1 | . 1 . Highest Loss Streak 1 | . 1 1 To Critical Strikes . | . . . Average Backups 12 | 4 9 14 Power 1 | . 1 1 Propulsion 1 | 2 1 1 Utility 2 | . 3 3 Weapon 6 | . 3 7 Tool/Special . | . . . Unused Backups 16 | . 2 14 Power 1 | . . 1 Propulsion 3 | . 1 2 Utility 3 | . . 3 Weapon 9 | . 1 8 Tool/Special . | . . . Average Slot Usage (%) 99 | . 100 99 Engine 14 | . 14 14 Treads 14 | . 24 8 Leg 1 | . 3 . Wheel 12 | . . 19 Device 13 | . 14 13 Storage 14 | . 14 14 Energy Gun 9 | . 5 11 Ballistic Gun 9 | . 16 6 Ballistic Cannon 5 | . 6 4 Special Weapon 2 | . . 4 Peak Build Rating 20 | 9 11 20 Average Rating 12 | 6 9 13 On Entrance 6 | . 9 11 Naked Turns . | . . . Heaviest Build 36 | 15 31 36 Greatest Support 40 | 40 40 40 Greatest Overweight (x) 1 | . . 1 Average Overweight (x) . | . . . Largest Inventory Capacity 15 | 8 15 15 Average Capacity 13 | 7 10 15 Most Carried 15 | 6 15 15 Average Carried 12 | 4 9 14 Final Capacity 15 | 8 15 15 Final Carried 15 | 6 15 15 Class Distribution -------------------- 97% | Mutant Dominant Class ---------------- Mutant | -10/Materials Mutant | -10/Subcaves Resources | -11 -10 -10 ----------- Run | Yrd Mat Sub Matter Collected 1175 | 364 341 470 Remotely . | . . . Salvage Created 974 | 201 662 111 Parts 66 | 21 38 7 Haulers Intercepted 1 | . 1 . Recyclers Shooed 3 | 1 2 . Parts Field Recycled . | . . . Retrieved Matter . | . . . Parts Self-Destructed 6 | . . 6 Prevented . | . . . Kills | -11 -10 -10 ------- Run | Yrd Mat Sub Combat Hostiles Destroyed 18 | . 13 5 Guns 14 | . 10 4 Cannons 4 | . 3 1 Classes Destroyed 8 | 3 4 1 Worker 1 | 1 . . Tunneler 5 | 5 . . Hauler 1 | . 1 . Recycler 3 | 1 2 . Watcher 2 | . 2 . Swarmer 3 | . 3 . Grunt 10 | . 10 . Subdweller 5 | . . 5 Best Kill Streak 5 | 5 3 2 Combat Bots Only 2 | . 2 2 Max Kills in Single Turn 1 | 1 1 1 Gunslinging . | . . . Exploded . | . . . Melee . | . . . Uniques/NPCs Destroyed . | . . . Combat | -11 -10 -10 -------- Run | Yrd Mat Sub Hostile Shots Fired 75 | . 39 36 Missed 19 | . 8 11 Hits 56 | . 31 25 Projectile 56 | . 31 25 Damage Taken 981 | . 375 606 Core 251 | . 29 222 Absorbed by Shields . | . . . Core Remaining (%) 100 | 100 . . Volleys Fired 125 | 16 52 57 Largest 2 | 2 2 2 Hottest 160 | 40 60 160 Shots Fired 212 | 32 98 82 Gun 152 | 32 70 50 Cannon 50 | . 28 22 Launcher . | . . . Special 10 | . . 10 Kinetic 137 | 32 80 25 Thermal 57 | . . 57 Explosive . | . . . Electromagnetic 18 | . 18 . Robot Hit Streak 25 | 18 25 20 Robot Miss Streak 5 | 1 2 5 Penetration Max . | . . . Secondary Targets . | . . . Shots Hit Robots 128 | 23 58 47 Core Hits 52 | 10 28 14 Critical Kills . | . . . Critical Parts Destroyed . | . . . Critical Strikes 3 | . 2 1 Burn 1 | . . 1 Blast 1 | . 1 . Corrupt 1 | . 1 . Melee Attacks . | . . . Impact . | . . . Slashing . | . . . Piercing . | . . . Sneak Attacks . | . . . Combat Hostiles . | . . . Follow-up Attacks . | . . . Damage Inflicted 1895 | 236 878 781 Guns 1253 | 236 583 434 Cannons 476 | . 230 246 Explosions 65 | . 65 . Melee . | . . . Ramming . | . . . Kinetic 1202 | 236 594 372 Thermal 474 | . 65 409 Explosive . | . . . Electromagnetic 219 | . 219 . Impact . | . . . Slashing . | . . . Piercing . | . . . Highest Corruption 3 | . 3 3 Average Corruption 2 | . 2 3 Corruption Purged . | . . . Corruption Blocked . | . . . Effects 34 | . 1 33 Message Errors 10 | . 1 9 Matter Fused 10 | . . 10 Heat Flow Errors 4 | . . 4 Parts Rejected 2 | . . 2 Parts Fused 1 | . . 1 Data Loss (minor) 1 | . . 1 Data Loss (major) 2 | . . 2 Misfires 4 | . . 4 Overload Shots . | . . . Overflow Damage 11 | . 11 . Projectiles . | . . . Explosions 11 | . 11 . Melee . | . . . Knockbacks 7 | . 6 1 Impact . | . . . Kinetic 7 | . 6 1 Secondary . | . . . Self-Inflicted Damage 37 | . 37 . Shots 1 | . 1 . Rammed . | . . . Targets Rammed . | . . . Kicked . | . . . Crushed . | . . . Highest Temperature 197 | . 45 197 Average Temperature 42 | . 16 93 Received Heat Transfer 273 | . 153 120 Siege Activations . | . . . Martial Activations . | . . . Shielding Activations . | . . . Robots Disrupted 1 | . . 1 Combat Hostiles 1 | . . 1 Robots Corrupted . | . . . Combat Hostiles . | . . . Parts Fried . | . . . Impact Corruptions . | . . . Robots Melted . | . . . Combat Hostiles . | . . . Parts Melted 1 | . . 1 Heat Transferred 1660 | . 100 1560 Parts Sabotaged . | . . . Parts Stolen . | . . . Parts Stripped . | . . . Power Chain Reactions 2 | . 2 . Alert | -11 -10 -10 ------- Run | Yrd Mat Sub Maximum Alert Level . | . . . Low Security (%) 100 | 100 100 . Level 1 . | . . . Level 2 . | . . . Level 3 . | . . . Level 4 . | . . . Level 5 . | . . . High Security . | . . . Max Security . | . . . Peak Influence 137 | 10 137 . Initial . | . . . Average 32 | 2 37 . Influence Increases 520 | 35 485 . Destroy 0b10 Robot/C 260 | . 260 . Destroy 0b10 Robot/NC 60 | 35 25 . Destroy Leader 56 | . 56 . Successful Hack 4 | . 4 . Select Force Hacks 30 | . 30 . Disable Machine 30 | . 30 . Destroy Structure 5 | . 5 . Lose Combat Pursuer 75 | . 75 . Influence Decreases 520 | 35 366 119 Entered New Map 58 | . . 58 Time Decay 452 | 35 356 61 Lost Part 10 | . 10 . Squads Dispatched 3 | . 3 . Investigation 2 | . 2 . Extermination . | . . . Reinforcement 1 | . 1 . Assault . | . . . Garrison . | . . . Intercept . | . . . Searches Triggered . | . . . Construction Impeded . | . . . Haulers Reinforced . | . . . Active Scanning Responses . | . . . Cargo Convoy Interrupts . | . . . Stealth | -11 -10 -10 --------- Run | Yrd Mat Sub Distress Signals 2 | . 2 . Communications Jammed . | . . . Distress Signals . | . . . Times Spotted 30 | . 22 8 Peak Tracking Total 3 | . 3 2 Tactical Retreats 4 | . 4 . Traps | -11 -10 -10 ------- Run | Yrd Mat Sub Traps Triggered 4 | . 2 2 Indirectly . | . . . Trap Hack Attempts . | . . . Triggered . | . . . Disarmed . | . . . Reprogrammed . | . . . Reused . | . . . Traps Extracted . | . . . Installed . | . . . Triggered . | . . . Most Traps Carried 1 | . . 1 Machines | -11 -10 -10 ---------- Run | Yrd Mat Sub Machines Disabled 3 | . 2 1 Max in Single Turn 1 | . 1 1 Machines Repaired . | . . . Machines Dismantled . | . . . Machines Sabotaged . | . . . Overloaded Fab Kills . | . . . Hacking | -11 -10 -10 --------- Run | Yrd Mat Sub Machines Accessed 5 | . 4 1 Terminals 3 | . 3 . Fabricators . | . . . Repair Stations . | . . . Recycling Units 1 | . 1 . Scanalyzers . | . . . Garrison Access . | . . . Total Hacks 13 | . 12 1 Successful 6 | . 5 1 Failed 7 | . 7 . Catastrophic . | . . . Database Lockouts . | . . . Manual 7 | . 7 . Terminals 10 | . 10 . Fabricators . | . . . Repair Stations . | . . . Recycling Units 2 | . 2 . Scanalyzers . | . . . Garrison Access . | . . . Terminal Hacks 3 | . 2 1 Record 1 | . 1 . Hauler Manifests 1 | . 1 . Proto ID Catalog 1 | . . 1 Fabricator Hacks . | . . . Repair Station Hacks . | . . . Recycling Unit Hacks 1 | . 1 . Retrieve Components 1 | . 1 . Scanalyzer . | . . . Garrison Access Hacks . | . . . Unauthorized Hacks 2 | . 2 . Terminals 1 | . 1 . Botnet 1 | . 1 . Fabricators . | . . . Repair Stations . | . . . Recycling Units 1 | . 1 . Tunnel 1 | . 1 . Scanalyzers . | . . . Garrison Access . | . . . Data Cores Recovered . | . . . Used . | . . . Hacking Detections 4 | . 4 . Full Trace Events 1 | . 1 . Feedback Events . | . . . Feedback Blocked . | . . . Robot Schematics Acquired . | . . . Robots Built . | . . . Authchips . | . . . Time . | . . . Total Robot Build Rating . | . . . Part Schematics Acquired . | . . . Parts Built . | . . . Authchips . | . . . Time . | . . . Total Part Build Rating . | . . . Parts Repaired . | . . . Time . | . . . Parts Recycled . | . . . Recycled Matter . | . . . Retrieved Matter . | . . . Retrieved Components 1 | . 1 . Parts Scanalyzed . | . . . Part Schematics Acquired . | . . . Parts Damaged . | . . . Bothacking | -11 -10 -10 ------------ Run | Yrd Mat Sub Used RIF Installer . | . . . Robots Hacked . | . . . Non-combat . | . . . Combat . | . . . Robot Hacks Applied . | . . . Relay Couplers Released . | . . . Fabnet Peak Effective % . | . . . Robots Rewired 1 | . . 1 Allies Hacked . | . . . Hacks Repelled . | . . . Allies | -11 -10 -10 -------- Run | Yrd Mat Sub Total Allies 4 | . . 4 Largest Group 4 | . . 4 Highest-Rated Group 76 | . . 76 Highest-Rated Ally 19 | . . 19 Total Orders . | . . . Ally Attacks . | . . . Total Damage . | . . . Kills . | . . . Allies Corrupted . | . . . Allies Melted . | . . . Intel | -11 -10 -10 ------- Run | Yrd Mat Sub Active Infowar (turns) 3046 | 81 1141 1824 Terrain 1222 | 81 1141 . Structural 23 | . . 23 Seismic 1801 | . . 1801 Robot Analysis Total . | . . . Derelict Logs Recovered 3 | . . 3 Drone Launches . | . . . Drone Recoveries . | . . . Exploration | -11 -10 -10 ------------- Run | Yrd Mat Sub Turns Passed 3638 | 169 1141 2328 Spaces Moved 2174 | 74 504 1596 Core 15 | 15 . . Treads 867 | 59 396 412 Legs 108 | . 108 . Wheels 1184 | . . 1184 Hover . | . . . Flight . | . . . Fastest Speed 50 | 50 120 110 Average Speed 134 | 137 151 128 Slowest Speed 160 | 160 160 160 Overloaded Moves . | . . . Propulsion Burnouts . | . . . Robots Hopped . | . . . Potential Cave-ins . | . . . Cave-ins Triggered . | . . . Exploration Rate (%) 57 | 5 76 90 Regions Visited 2 Branch Regions 1 Pre-discovered Areas 2 | . 1 1 Known Exits Taken . | . . . Unknown Exits Taken 2 | 1 1 . Scrap Searched 10 | . . 10 Spaces Dug . | . . . Terrain Destroyed 3 | . 3 . Melee . | . . . Projectile . | . . . AOE 3 | . 3 . Terrain Rammed . | . . . Walls Destroyed . | . . . Machines Disabled . | . . . Actions | -11 -10 -10 --------- Run | Yrd Mat Sub Total 2679 | 111 787 1781 Wait 248 | . 202 46 Move 2172 | 73 503 1596 Hop . | . . . Pick Up 46 | 11 14 21 Fast Attach 8 | 1 . 7 Attach 10 | 6 1 3 Detach 2 | . . 2 Swap 29 | 3 8 18 Drop 34 | 1 7 26 Fire 125 | 16 52 57 Melee . | . . . Ram . | . . . Kick . | . . . Crush . | . . . Escape Stasis . | . . . Rewire 5 | . . 5 Trap . | . . . Miscellaneous . | . . . Route ------- -11/Scrapyard -10/Materials (discovered 5 exits: [*Mat x2] / [*Min x2] / *Sub) -10/Subcaves (discovered 2 exits: [*Mat x2]) History --------- Turn | Location | Event 5 | -11/Scrapyard | Discovered new exit (range 15) 170 | -11/Scrapyard | Entered Materials 219 | -10/Materials | Discovered new exit (range 16) 306 | -10/Materials | Build established: Mutant 752 | -10/Materials | Discovered new exit (range 8) 760 | -10/Materials | Discovered new exit (range 12) 853 | -10/Materials | Discovered new exit (range 3) 1173 | -10/Materials | Discovered new exit (range 3) 1311 | -10/Materials | Entered Subcaves 1328 | -10/Subcaves | Shifting Twisted Machinery released Barrage Gun 1372 | -10/Subcaves | Learned location of Zion (-7) 1399 | -10/Subcaves | Learned Materials emergency access door positions 1473 | -10/Subcaves | Discovered new exit (range 15) 1765 | -10/Subcaves | Shifting Twisted Machinery released Mak. Shrapnel Gun 1779 | -10/Subcaves | Shifting Twisted Machinery released Sub. Laser 1918 | -10/Subcaves | Shifting Twisted Machinery released Battle Cannon 1922 | -10/Subcaves | Shifting Twisted Machinery released Sub. Laser 2050 | -10/Subcaves | Discovered new exit (range 9) 2469 | -10/Subcaves | Learned Materials garrison access intel 2632 | -10/Subcaves | Visited 4L-MR0's lab 2649 | -10/Subcaves | Found Arachnoskeleton 2752 | -10/Subcaves | Shifting Twisted Machinery released Sub. Monowheel 2963 | -10/Subcaves | Core integrity fell below 50% 3199 | -10/Subcaves | Visited triangular shrine 3207 | -10/Subcaves | Found Prototype Device 3208 | -10/Subcaves | Identified V3-11A's Pendant 3213 | -10/Subcaves | Befriended Subdweller 3437 | -10/Subcaves | Ambushed by Subdwellers from Twisted Machinery 3438 | -10/Subcaves | Befriended Subdweller 3438 | -10/Subcaves | Befriended Subdweller 3634 | -10/Subcaves | Core integrity fell below 20% 3639 | -10/Subcaves | Destroyed by Piercing Trap Last Messages --------------- 03585_ Searching scrap... 03585_ Found Mak. System Shield. 03585_ Found 64 Matter. 03594_ Searching scrap... 03594_ Found Sub. Power Source. 03594_ Found Battle Rifle. 03594_ Found 50 Matter. 03596_ Searching scrap... 03596_ Found Shrapnel Trap. 03596_ Found Sub. Monowheel. 03596_ Found 48 Matter. 03597_ Dropped Battle Cannon. 03599_ Acquired Shrapnel Trap. 03609_ System corrupted: Heat flow error (+237). 03614_ Sub. Monowheel shoots sparks and powers down. 03633_ Triggered Shrapnel Trap. 03633_ An expanding cloud of shrapnel blasts out in all directions. 03639_ Triggered Piercing Trap. 03639_ Spikes shoot up from the floor. 03639_ Critical hit (Impale). Map ----- +----------------------------------------------------+ | | | | | | | | | ?????????????????????????????????????????????????? | | ?????????????????????????????????????????????????? | | ?????????????????????????????????????????????????? | | ?????????????????????????????????????????????????? | | ?????????????????????????????????????????????????? | | #??####??????????????????????????????????????????? | | #?##%*##?????????????????????????????????????????? | | ###"[="#?????????????????????????????????????????? | | # %#?????????????????????????????????????????? | | %# "]##?????????????????????????????????????????? | | ## ####??????????????????????????????????????????? | | ## "##?????????????????????????????????????????? | | "#?????????????????????????????????????????? | | ### %#?????????????????????????????????????????? | | !####???????????????????????????????????????? | | ##^"## ##?????????????????????????????#########? | | ##### #?????????????????????????????# ## | | #### ##???????????????????????????## # | | " ## #????#########????#?????##### | | ###### #;;; ;#### #?????# # | | ### ## ;; #?????# | | ## R R @ #???????#### | | #### R ; ##?????????## # ##### | | ???## ### ## # R;; #??????????# # ###???? | | ????## ##?###### ## ##?????????### # #????? | | ?????####???????####### ##??????????# # ##????? | | ??????????????###?????###???????????# "#????? | | ????????????### ##??????????????????## "#????? | | ???????????## ###??####???????????## # "#???## | | ??????###### #### #????????????### ""##?## | | ??????# # ###??????????????# "" ### | | ??????# #### ### #???????????????## | | ??????# ##??## ###### #?????????###???# """ | | ??????# #????# ## ### ##?????????# ###?## ] """ | | ??????# #????# [ ###?????###??## #### """ | | ??????# #???## # #####??# #### ## [! | | ??????# ##?## # # #### ## ## ## ## | | ??????# ### ## ## ## ## ### #!## #####? | | ??????# ## ## #### ### # ###### ##????? | | ??????##### # ##?####?### ##???# #?????? | | ?????????# ###??????###??# #?????? | | ?????????# #???????????## ##?????? | | ?????????# # #????????????#####??????? | | ?????????#### ## #??????????????????????? | | ??????????## #?# #??????????????????????? | | ??????????# #??# ##??????????????????????? | +----------------------------------------------------+ Best States ------------- Heat Dissipation 39 Energy Generation 10 Energy Capacity 250 Matter Stores 300 Matter Capacity 300 Sight Range 16 Terrain Scan Range 16 Terrain Scan Density 10 Evasion (%) 55 Recoil Reduction 2 Item Schematics ----------------- None Robot Schematics ------------------ None Fabricated ------------ Nothing Repaired ---------- Nothing Alien Tech Used ----------------- None Achievements -------------- None Challenges ------------ None Game ------ Seed FortressClaymoresParser Manual? 0 Play Time 00:34:02 Cumulative 786.7 hours Start 2025.05.11 @ 17:41:14 End 2025.05.11 @ 18:15:12 Sessions 1 Manual Loads 0 Difficulty Rogue Special Mode None Game No. 138 Rogue 114 Adventurer 24 Explorer 0 Win Type - Total 29 Types 18/2/3/3/1/0/1/1/0/0 Lore% 74 Gallery% 84 Achievement% 88 Wizard Run 0 Options --------- Layout 0 ASCII 0 Keyboard 0 Movement Mouse Keybinds 0 Fullscreen 1 Font 36/Smallcaps Map View 76x50 Zoom Use 0% Tactical HUD 1 Map Filters SHIFT_HUE(360) Filters NONE Steam 1 RUN: 1800e571-a289-4320-a9d3-d1721ce32066